Publisher Label,Publisher URI,"Payment Date","Organisational Unit","Beneficiary Name","Purpose","Amount (£)","Irrecoverable VAT Amount (£)","Merchant Category Code"
"Wolverhampton City Council","http://opendatacommunities.org/id/metropolitan-district-council/wolverhampton","06/10/2017","Governance","Allsorts Office Supplies Limited","Equipment - Purchase","4,176.00","0.00","5021"
"Wolverhampton City Council","http://opendatacommunities.org/id/metropolitan-district-council/wolverhampton","06/10/2017","Governance","Allsorts Office Supplies Limited","Equipment - Purchase","13,407.00","0.00","5021"
"Wolverhampton City Council","http://opendatacommunities.org/id/metropolitan-district-council/wolverhampton","04/08/2017","LGPS Central","Andrew Warwick-Thompson","Public Transport","590.80","0.00","4112"
"Wolverhampton City Council","http://opendatacommunities.org/id/metropolitan-district-council/wolverhampton","22/09/2017","LGPS Central","Aon Hewitt Ltd","Public Liability Insurance","3,958.35","0.00","6300"
"Wolverhampton City Council","http://opendatacommunities.org/id/metropolitan-district-council/wolverhampton","14/07/2017","Pension Operations","Barnett Waddingham LLP","Services - Professional Fees","760.00","0.00","6012"
"Wolverhampton City Council","http://opendatacommunities.org/id/metropolitan-district-council/wolverhampton","31/08/2017","Pension Operations","Barnett Waddingham LLP","Actuarial Fees","760.00","0.00","6012"
"Wolverhampton City Council","http://opendatacommunities.org/id/metropolitan-district-council/wolverhampton","31/08/2017","Pension Operations","Barnett Waddingham LLP","Actuarial Fees","877.50","0.00","6012"
"Wolverhampton City Council","http://opendatacommunities.org/id/metropolitan-district-council/wolverhampton","01/09/2017","Pension Operations","Barnett Waddingham LLP","Actuarial Fees","1,125.00","0.00","6012"
"Wolverhampton City Council","http://opendatacommunities.org/id/metropolitan-district-council/wolverhampton","18/07/2017","Pension Operations","Barnett Waddingham LLP","Actuarial Fees","2,000.00","0.00","6012"
"Wolverhampton City Council","http://opendatacommunities.org/id/metropolitan-district-council/wolverhampton","09/08/2017","Pension Operations","Barnett Waddingham LLP","Actuarial Fees","2,380.00","0.00","6012"
"Wolverhampton City Council","http://opendatacommunities.org/id/metropolitan-district-council/wolverhampton","22/09/2017","Pension Operations","Barnett Waddingham LLP","Actuarial Fees","3,398.75","0.00","6012"
"Wolverhampton City Council","http://opendatacommunities.org/id/metropolitan-district-council/wolverhampton","01/09/2017","Pension Operations","Barnett Waddingham LLP","Actuarial Fees","7,250.00","0.00","6012"
"Wolverhampton City Council","http://opendatacommunities.org/id/metropolitan-district-council/wolverhampton","31/08/2017","Pension Operations","Barnett Waddingham LLP","Actuarial Fees","9,535.00","0.00","6012"
"Wolverhampton City Council","http://opendatacommunities.org/id/metropolitan-district-council/wolverhampton","14/07/2017","Pension Operations","Barnett Waddingham LLP","Actuarial Fees","16,070.00","0.00","6012"
"Wolverhampton City Council","http://opendatacommunities.org/id/metropolitan-district-council/wolverhampton","30/08/2017","Governance","Bevan Brittan LLP","Services - Professional Fees","2,700.00","0.00","8111"
"Wolverhampton City Council","http://opendatacommunities.org/id/metropolitan-district-council/wolverhampton","06/09/2017","Pension Operations","BIRMINGHAM CITY COUNCIL","Comms - Postage","2,126.49","0.00","9399"
"Wolverhampton City Council","http://opendatacommunities.org/id/metropolitan-district-council/wolverhampton","04/08/2017","Pension Operations","BIRMINGHAM CITY COUNCIL","Comms - Postage","2,543.69","0.00","9399"
"Wolverhampton City Council","http://opendatacommunities.org/id/metropolitan-district-council/wolverhampton","22/08/2017","Pension Operations","BIRMINGHAM CITY COUNCIL","Comms - Postage","2,847.56","0.00","9399"
"Wolverhampton City Council","http://opendatacommunities.org/id/metropolitan-district-council/wolverhampton","25/09/2017","Investments Fund Account","BPP Professional Education Limited","Training Expenses","774.79","0.00","8299"
"Wolverhampton City Council","http://opendatacommunities.org/id/metropolitan-district-council/wolverhampton","19/07/2017","Governance","BPP Professional Education Limited","Training Expenses","1,018.00","0.00","8299"
"Wolverhampton City Council","http://opendatacommunities.org/id/metropolitan-district-council/wolverhampton","31/08/2017","LGPS Central","Centaur Media","Staff Advertising Costs","1,500.00","0.00","7311"
"Wolverhampton City Council","http://opendatacommunities.org/id/metropolitan-district-council/wolverhampton","04/08/2017","Pension Operations","CIVICA UK LIMITED","Computing - Maint Agreements","510.00","0.00","5045"
"Wolverhampton City Council","http://opendatacommunities.org/id/metropolitan-district-council/wolverhampton","05/10/2017","Pension Operations","CIVICA UK LIMITED","Computing - Maint Agreements","10,000.00","0.00","5045"
"Wolverhampton City Council","http://opendatacommunities.org/id/metropolitan-district-council/wolverhampton","09/08/2017","Pension Operations","CIVICA UK LIMITED","Computing - Maint Agreements","13,972.00","0.00","5045"
"Wolverhampton City Council","http://opendatacommunities.org/id/metropolitan-district-council/wolverhampton","04/09/2017","Pension Operations","CIVICA UK LIMITED","Computing - Maint Agreements","15,000.00","0.00","5045"
"Wolverhampton City Council","http://opendatacommunities.org/id/metropolitan-district-council/wolverhampton","04/09/2017","Pension Operations","CIVICA UK LIMITED","Computing - Maint Agreements","15,000.00","0.00","5045"
"Wolverhampton City Council","http://opendatacommunities.org/id/metropolitan-district-council/wolverhampton","26/09/2017","Governance","Coach And Bus Hire","Public Transport","2,900.00","0.00","4131"
"Wolverhampton City Council","http://opendatacommunities.org/id/metropolitan-district-council/wolverhampton","29/08/2017","Investment - Revenue","DLA Piper UK LLP","Services - Professional Fees","2,112.00","0.00","8111"
"Wolverhampton City Council","http://opendatacommunities.org/id/metropolitan-district-council/wolverhampton","03/08/2017","Governance","DTZ DTL LTD CLIENT","Rent","25,624.31","0.00","7523"
"Wolverhampton City Council","http://opendatacommunities.org/id/metropolitan-district-council/wolverhampton","03/08/2017","Governance","DTZ DTL LTD CLIENT","Rent","29,221.89","0.00","7523"
"Wolverhampton City Council","http://opendatacommunities.org/id/metropolitan-district-council/wolverhampton","14/09/2017","Governance","DTZ DTL LTD CLIENT","Rent","54,846.20","0.00","7523"
"Wolverhampton City Council","http://opendatacommunities.org/id/metropolitan-district-council/wolverhampton","14/09/2017","LGPS Central","eFinancial Careers Ltd","Staff Advertising Costs","550.00","0.00","7311"
"Wolverhampton City Council","http://opendatacommunities.org/id/metropolitan-district-council/wolverhampton","22/08/2017","LAPFF","EMAP PUBLISHING LTD","Conference Expenses","799.00","0.00","5192"
"Wolverhampton City Council","http://opendatacommunities.org/id/metropolitan-district-council/wolverhampton","09/08/2017","LGPS Central","Eversheds LLP","Services - Professional Fees","500.00","0.00","8111"
"Wolverhampton City Council","http://opendatacommunities.org/id/metropolitan-district-council/wolverhampton","09/08/2017","LGPS Central","Eversheds LLP","Services - Professional Fees","598.00","0.00","8111"
"Wolverhampton City Council","http://opendatacommunities.org/id/metropolitan-district-council/wolverhampton","09/08/2017","LGPS Central","Eversheds LLP","Services - Professional Fees","686.50","0.00","8111"
"Wolverhampton City Council","http://opendatacommunities.org/id/metropolitan-district-council/wolverhampton","09/08/2017","LGPS Central","Eversheds LLP","Services - Professional Fees","780.00","0.00","8111"
"Wolverhampton City Council","http://opendatacommunities.org/id/metropolitan-district-council/wolverhampton","09/08/2017","LGPS Central","Eversheds LLP","Services - Professional Fees","796.00","0.00","8111"
"Wolverhampton City Council","http://opendatacommunities.org/id/metropolitan-district-council/wolverhampton","02/10/2017","LGPS Central","Eversheds LLP","Services - Professional Fees","834.00","0.00","8111"
"Wolverhampton City Council","http://opendatacommunities.org/id/metropolitan-district-council/wolverhampton","09/08/2017","LGPS Central","Eversheds LLP","Services - Professional Fees","1,008.00","0.00","8111"
"Wolverhampton City Council","http://opendatacommunities.org/id/metropolitan-district-council/wolverhampton","09/08/2017","LGPS Central","Eversheds LLP","Services - Professional Fees","1,014.00","0.00","8111"
"Wolverhampton City Council","http://opendatacommunities.org/id/metropolitan-district-council/wolverhampton","09/08/2017","LGPS Central","Eversheds LLP","Services - Professional Fees","1,440.00","0.00","8111"
"Wolverhampton City Council","http://opendatacommunities.org/id/metropolitan-district-council/wolverhampton","24/08/2017","Pension Operations","Eversheds LLP","Services - Professional Fees","1,493.00","0.00","8111"
"Wolverhampton City Council","http://opendatacommunities.org/id/metropolitan-district-council/wolverhampton","02/10/2017","LGPS Central","Eversheds LLP","Services - Professional Fees","1,500.00","0.00","8111"
"Wolverhampton City Council","http://opendatacommunities.org/id/metropolitan-district-council/wolverhampton","10/08/2017","LGPS Central","Eversheds LLP","Services - Professional Fees","1,500.00","0.00","8111"
"Wolverhampton City Council","http://opendatacommunities.org/id/metropolitan-district-council/wolverhampton","17/07/2017","LGPS Central","Eversheds LLP","Services - Professional Fees","1,830.76","0.00","8111"
"Wolverhampton City Council","http://opendatacommunities.org/id/metropolitan-district-council/wolverhampton","09/08/2017","LGPS Central","Eversheds LLP","Services - Professional Fees","2,000.00","0.00","8111"
"Wolverhampton City Council","http://opendatacommunities.org/id/metropolitan-district-council/wolverhampton","02/10/2017","LGPS Central","Eversheds LLP","Services - Professional Fees","2,366.00","0.00","8111"
"Wolverhampton City Council","http://opendatacommunities.org/id/metropolitan-district-council/wolverhampton","10/08/2017","LGPS Central","Eversheds LLP","Services - Professional Fees","2,481.50","0.00","8111"
"Wolverhampton City Council","http://opendatacommunities.org/id/metropolitan-district-council/wolverhampton","23/08/2017","LGPS Central","Eversheds LLP","Services - Professional Fees","2,707.00","0.00","8111"
"Wolverhampton City Council","http://opendatacommunities.org/id/metropolitan-district-council/wolverhampton","17/07/2017","LGPS Central","Eversheds LLP","Services - Professional Fees","3,000.00","0.00","8111"
"Wolverhampton City Council","http://opendatacommunities.org/id/metropolitan-district-council/wolverhampton","18/08/2017","LGPS Central","Eversheds LLP","Services - Professional Fees","3,014.00","0.00","8111"
"Wolverhampton City Council","http://opendatacommunities.org/id/metropolitan-district-council/wolverhampton","09/08/2017","LGPS Central","Eversheds LLP","Services - Professional Fees","3,143.00","0.00","8111"
"Wolverhampton City Council","http://opendatacommunities.org/id/metropolitan-district-council/wolverhampton","23/08/2017","LGPS Central","Eversheds LLP","Services - Professional Fees","3,250.00","0.00","8111"
"Wolverhampton City Council","http://opendatacommunities.org/id/metropolitan-district-council/wolverhampton","24/08/2017","Pension Operations","Eversheds LLP","Services - Professional Fees","3,381.50","0.00","8111"
"Wolverhampton City Council","http://opendatacommunities.org/id/metropolitan-district-council/wolverhampton","09/08/2017","LGPS Central","Eversheds LLP","Services - Professional Fees","3,500.00","0.00","8111"
"Wolverhampton City Council","http://opendatacommunities.org/id/metropolitan-district-council/wolverhampton","23/08/2017","LGPS Central","Eversheds LLP","Services - Professional Fees","3,548.00","0.00","8111"
"Wolverhampton City Council","http://opendatacommunities.org/id/metropolitan-district-council/wolverhampton","02/10/2017","LGPS Central","Eversheds LLP","Services - Professional Fees","3,750.00","0.00","8111"
"Wolverhampton City Council","http://opendatacommunities.org/id/metropolitan-district-council/wolverhampton","09/08/2017","LGPS Central","Eversheds LLP","Services - Professional Fees","4,000.00","0.00","8111"
"Wolverhampton City Council","http://opendatacommunities.org/id/metropolitan-district-council/wolverhampton","09/08/2017","LGPS Central","Eversheds LLP","Services - Professional Fees","4,500.00","0.00","8111"
"Wolverhampton City Council","http://opendatacommunities.org/id/metropolitan-district-council/wolverhampton","25/08/2017","LGPS Central","Eversheds LLP","Services - Professional Fees","4,511.00","0.00","8111"
"Wolverhampton City Council","http://opendatacommunities.org/id/metropolitan-district-council/wolverhampton","09/08/2017","LGPS Central","Eversheds LLP","Services - Professional Fees","5,224.90","0.00","8111"
"Wolverhampton City Council","http://opendatacommunities.org/id/metropolitan-district-council/wolverhampton","10/08/2017","LGPS Central","Eversheds LLP","Services - Professional Fees","5,614.00","0.00","8111"
"Wolverhampton City Council","http://opendatacommunities.org/id/metropolitan-district-council/wolverhampton","23/08/2017","LGPS Central","Eversheds LLP","Services - Professional Fees","6,444.00","0.00","8111"
"Wolverhampton City Council","http://opendatacommunities.org/id/metropolitan-district-council/wolverhampton","09/08/2017","LGPS Central","Eversheds LLP","Services - Professional Fees","7,000.00","0.00","8111"
"Wolverhampton City Council","http://opendatacommunities.org/id/metropolitan-district-council/wolverhampton","12/10/2017","LGPS Central","Eversheds LLP","Services - Professional Fees","8,000.00","0.00","8111"
"Wolverhampton City Council","http://opendatacommunities.org/id/metropolitan-district-council/wolverhampton","29/08/2017","Executive","Financial Reporting Council","Subscriptions","8,981.67","0.00","8999"
"Wolverhampton City Council","http://opendatacommunities.org/id/metropolitan-district-council/wolverhampton","23/08/2017","Governance","GBS Corporate Training","Training Expenses","800.00","0.00","8299"
"Wolverhampton City Council","http://opendatacommunities.org/id/metropolitan-district-council/wolverhampton","03/08/2017","Governance","GBS Corporate Training","Training Expenses","1,100.00","0.00","8299"
"Wolverhampton City Council","http://opendatacommunities.org/id/metropolitan-district-council/wolverhampton","23/08/2017","Governance","GBS Corporate Training","Training Expenses","1,100.00","0.00","8299"
"Wolverhampton City Council","http://opendatacommunities.org/id/metropolitan-district-council/wolverhampton","01/09/2017","Pension Operations","GovNet Communications","Conference Expenses","740.00","0.00","8999"
"Wolverhampton City Council","http://opendatacommunities.org/id/metropolitan-district-council/wolverhampton","24/07/2017","Financial Services","Grant Thornton UK LLP","Services - Professional Fees","12,154.00","0.00","8931"
"Wolverhampton City Council","http://opendatacommunities.org/id/metropolitan-district-council/wolverhampton","26/09/2017","Governance","Hilton Bath City","Accommodation Costs","2,150.00","0.00","7011"
"Wolverhampton City Council","http://opendatacommunities.org/id/metropolitan-district-council/wolverhampton","29/08/2017","Investment - Revenue","HSBC BANK PLC/HSBC SECURITY SERVICES","Services - Professional Fees","4,406.39","0.00","6012"
"Wolverhampton City Council","http://opendatacommunities.org/id/metropolitan-district-council/wolverhampton","28/07/2017","Investment - Revenue","HSBC BANK PLC/HSBC SECURITY SERVICES","Services - Professional Fees","4,406.39","0.00","6012"
"Wolverhampton City Council","http://opendatacommunities.org/id/metropolitan-district-council/wolverhampton","25/09/2017","Investment - Revenue","HSBC BANK PLC/HSBC SECURITY SERVICES","Services - Professional Fees","4,406.39","0.00","6012"
"Wolverhampton City Council","http://opendatacommunities.org/id/metropolitan-district-council/wolverhampton","19/09/2017","Financial Services","HYMANS ROBERTSON LLP","Services - Professional Fees","6,250.00","0.00","6012"
"Wolverhampton City Council","http://opendatacommunities.org/id/metropolitan-district-council/wolverhampton","16/08/2017","Financial Services","HYMANS ROBERTSON LLP","Services - Professional Fees","9,550.00","0.00","6012"
"Wolverhampton City Council","http://opendatacommunities.org/id/metropolitan-district-council/wolverhampton","04/08/2017","Financial Services","HYMANS ROBERTSON LLP","Services - Professional Fees","10,000.00","0.00","6012"
"Wolverhampton City Council","http://opendatacommunities.org/id/metropolitan-district-council/wolverhampton","14/07/2017","Investments Fund Account","IIGCC","Subscriptions","6,300.00","0.00","8999"
"Wolverhampton City Council","http://opendatacommunities.org/id/metropolitan-district-council/wolverhampton","19/07/2017","LGPS Central","IRG Advisors t/a Odgers Berndtson","Services - Professional Fees","6,400.00","0.00","7392"
"Wolverhampton City Council","http://opendatacommunities.org/id/metropolitan-district-council/wolverhampton","15/08/2017","LGPS Central","IRG Advisors t/a Odgers Berndtson","Services - Professional Fees","6,450.00","0.00","7392"
"Wolverhampton City Council","http://opendatacommunities.org/id/metropolitan-district-council/wolverhampton","03/08/2017","LGPS Central","IRG Advisors t/a Odgers Berndtson","Services - Professional Fees","10,892.65","0.00","7392"
"Wolverhampton City Council","http://opendatacommunities.org/id/metropolitan-district-council/wolverhampton","19/07/2017","LGPS Central","IRG Advisors t/a Odgers Berndtson","Services - Professional Fees","11,530.41","0.00","7392"
"Wolverhampton City Council","http://opendatacommunities.org/id/metropolitan-district-council/wolverhampton","07/09/2017","LGPS Central","IRG Advisors t/a Odgers Berndtson","Services - Professional Fees","15,502.11","0.00","7392"
"Wolverhampton City Council","http://opendatacommunities.org/id/metropolitan-district-council/wolverhampton","31/08/2017","Investments Fund Account","K & T Wilson","R&M - Departmental planned (external)","657.80","0.00","1750"
"Wolverhampton City Council","http://opendatacommunities.org/id/metropolitan-district-council/wolverhampton","09/08/2017","Pension Operations","KNOWLEDGE ACADEMY","Training Expenses","595.00","0.00","8299"
"Wolverhampton City Council","http://opendatacommunities.org/id/metropolitan-district-council/wolverhampton","04/08/2017","Pension Operations","KNOWLEDGE ACADEMY","Training Expenses","1,795.00","0.00","8299"
"Wolverhampton City Council","http://opendatacommunities.org/id/metropolitan-district-council/wolverhampton","13/10/2017","Governance","Korn Ferry Hay Group","Services - Professional Fees","550.00","0.00","7392"
"Wolverhampton City Council","http://opendatacommunities.org/id/metropolitan-district-council/wolverhampton","31/08/2017","Governance","KRCS GROUP PLC","Computing - Purchase of Hardware","859.00","0.00","5072"
"Wolverhampton City Council","http://opendatacommunities.org/id/metropolitan-district-council/wolverhampton","15/08/2017","Governance","KRCS GROUP PLC","Subscriptions","859.00","0.00","5072"
"Wolverhampton City Council","http://opendatacommunities.org/id/metropolitan-district-council/wolverhampton","04/10/2017","Investments Fund Account","LINEDATA LIMITED","Computing - Maint Agreements","56,907.77","0.00","5045"
"Wolverhampton City Council","http://opendatacommunities.org/id/metropolitan-district-council/wolverhampton","24/08/2017","Investments Fund Account","LINEDATA LIMITED","Computing - Maint Agreements","56,907.77","0.00","5045"
"Wolverhampton City Council","http://opendatacommunities.org/id/metropolitan-district-council/wolverhampton","19/07/2017","Executive","Local Government Association","Subscriptions","20,260.00","0.00","9399"
"Wolverhampton City Council","http://opendatacommunities.org/id/metropolitan-district-council/wolverhampton","31/08/2017","Investments Fund Account","LONDON STOCK EXCHANGE PLC","Services - General Licences","604.93","0.00","6012"
"Wolverhampton City Council","http://opendatacommunities.org/id/metropolitan-district-council/wolverhampton","12/10/2017","Governance","Movecorp Ltd","Services - Professional Fees","3,745.75","0.00","8999"
"Wolverhampton City Council","http://opendatacommunities.org/id/metropolitan-district-council/wolverhampton","07/08/2017","Investment - Revenue","MSCI Limited","Computing - Maint Agreements","61,456.17","0.00","5045"
"Wolverhampton City Council","http://opendatacommunities.org/id/metropolitan-district-council/wolverhampton","18/07/2017","Financial Services","Norfolk County Council","Subscriptions","750.00","0.00","8299"
"Wolverhampton City Council","http://opendatacommunities.org/id/metropolitan-district-council/wolverhampton","09/08/2017","Pension Operations","Pension Management Institute","Training Expenses","540.00","0.00","8299"
"Wolverhampton City Council","http://opendatacommunities.org/id/metropolitan-district-council/wolverhampton","18/07/2017","Pension Operations","Pension Management Institute","Training Expenses","760.00","0.00","8299"
"Wolverhampton City Council","http://opendatacommunities.org/id/metropolitan-district-council/wolverhampton","02/08/2017","Investment - Revenue","Pinsent Masons","Services - Professional Fees","7,000.00","0.00","8111"
"Wolverhampton City Council","http://opendatacommunities.org/id/metropolitan-district-council/wolverhampton","03/08/2017","LAPFF","PIRC Ltd","Services - Professional Fees","2,745.00","0.00","8999"
"Wolverhampton City Council","http://opendatacommunities.org/id/metropolitan-district-council/wolverhampton","23/07/2017","LAPFF","PIRC Ltd","Services - Professional Fees","3,102.00","0.00","8999"
"Wolverhampton City Council","http://opendatacommunities.org/id/metropolitan-district-council/wolverhampton","23/07/2017","LAPFF","PIRC Ltd","Services - Professional Fees","7,183.05","0.00","8999"
"Wolverhampton City Council","http://opendatacommunities.org/id/metropolitan-district-council/wolverhampton","08/08/2017","LAPFF","PIRC Ltd","Services - Professional Fees","7,512.00","0.00","8999"
"Wolverhampton City Council","http://opendatacommunities.org/id/metropolitan-district-council/wolverhampton","18/07/2017","LAPFF","PIRC Ltd","Services - Professional Fees","38,370.80","0.00","8999"
"Wolverhampton City Council","http://opendatacommunities.org/id/metropolitan-district-council/wolverhampton","04/08/2017","LAPFF","PIRC Ltd","Services - Professional Fees","41,953.60","0.00","8999"
"Wolverhampton City Council","http://opendatacommunities.org/id/metropolitan-district-council/wolverhampton","31/08/2017","LAPFF","PIRC Ltd","Services - Professional Fees","50,593.40","0.00","8999"
"Wolverhampton City Council","http://opendatacommunities.org/id/metropolitan-district-council/wolverhampton","14/07/2017","Investment - Revenue","PIRC Ltd","Services - Professional Fees","94,385.00","0.00","8999"
"Wolverhampton City Council","http://opendatacommunities.org/id/metropolitan-district-council/wolverhampton","03/08/2017","LAPFF","PIRC Ltd","Subsistence","924.00","0.00","8999"
"Wolverhampton City Council","http://opendatacommunities.org/id/metropolitan-district-council/wolverhampton","03/08/2017","LAPFF","PIRC Ltd","Subsistence","948.19","0.00","8999"
"Wolverhampton City Council","http://opendatacommunities.org/id/metropolitan-district-council/wolverhampton","23/07/2017","LAPFF","PIRC Ltd","Subsistence","2,714.15","0.00","8999"
"Wolverhampton City Council","http://opendatacommunities.org/id/metropolitan-district-council/wolverhampton","03/08/2017","LAPFF","PIRC Ltd","Conference Expenses","1,210.00","0.00","8999"
"Wolverhampton City Council","http://opendatacommunities.org/id/metropolitan-district-council/wolverhampton","03/08/2017","LAPFF","PIRC Ltd","Conference Expenses","4,633.95","0.00","8999"
"Wolverhampton City Council","http://opendatacommunities.org/id/metropolitan-district-council/wolverhampton","18/08/2017","Investment - Revenue","Portfolio Evaluation Limited","Services - Professional Fees","6,560.00","0.00","8999"
"Wolverhampton City Council","http://opendatacommunities.org/id/metropolitan-district-council/wolverhampton","18/08/2017","Investment - Revenue","Portfolio Evaluation Limited","Services - Professional Fees","8,200.00","0.00","8999"
"Wolverhampton City Council","http://opendatacommunities.org/id/metropolitan-district-council/wolverhampton","28/07/2017","LGPS Central","PRICE WATERHOUSE COOPERS","Services - Professional Fees","44,650.00","0.00","8931"
"Wolverhampton City Council","http://opendatacommunities.org/id/metropolitan-district-council/wolverhampton","28/07/2017","Pension Operations","QAS LIMITED T/A EXPERIAN QAS","Computing - Maint Agreements","2,050.00","0.00","5045"
"Wolverhampton City Council","http://opendatacommunities.org/id/metropolitan-district-council/wolverhampton","31/08/2017","Pension Operations","QAS LIMITED T/A EXPERIAN QAS","Computing - Maint Agreements","2,350.96","0.00","5045"
"Wolverhampton City Council","http://opendatacommunities.org/id/metropolitan-district-council/wolverhampton","24/07/2017","LGPS Central","R D Summers","Services - Professional Fees","1,500.00","0.00","8999"
"Wolverhampton City Council","http://opendatacommunities.org/id/metropolitan-district-council/wolverhampton","10/08/2017","Governance","ROYAL MAIL GROUP PLC","Comms - Postage","578.10","0.00","9402"
"Wolverhampton City Council","http://opendatacommunities.org/id/metropolitan-district-council/wolverhampton","15/09/2017","Governance","ROYAL MAIL GROUP PLC","Comms - Postage","674.86","0.00","9402"
"Wolverhampton City Council","http://opendatacommunities.org/id/metropolitan-district-council/wolverhampton","11/08/2017","Governance","ROYAL MAIL GROUP PLC","Comms - Postage","748.10","0.00","9402"
"Wolverhampton City Council","http://opendatacommunities.org/id/metropolitan-district-council/wolverhampton","05/09/2017","Governance","ROYAL MAIL GROUP PLC","Comms - Postage","902.85","0.00","9402"
"Wolverhampton City Council","http://opendatacommunities.org/id/metropolitan-district-council/wolverhampton","28/07/2017","Governance","ROYAL MAIL GROUP PLC","Comms - Postage","910.00","0.00","9402"
"Wolverhampton City Council","http://opendatacommunities.org/id/metropolitan-district-council/wolverhampton","10/10/2017","Governance","ROYAL MAIL GROUP PLC","Comms - Postage","1,130.66","0.00","9402"
"Wolverhampton City Council","http://opendatacommunities.org/id/metropolitan-district-council/wolverhampton","10/08/2017","Pension Operations","SCOTWORK UK LTD","Training Expenses","5,772.54","0.00","8299"
"Wolverhampton City Council","http://opendatacommunities.org/id/metropolitan-district-council/wolverhampton","13/10/2017","Governance","Seal & Send Ltd T/A Send Marketing Solutions","Printing","500.00","0.00","4215"
"Wolverhampton City Council","http://opendatacommunities.org/id/metropolitan-district-council/wolverhampton","01/08/2017","Governance","Seal & Send Ltd T/A Send Marketing Solutions","Printing","687.00","0.00","4215"
"Wolverhampton City Council","http://opendatacommunities.org/id/metropolitan-district-council/wolverhampton","09/08/2017","Investment - Revenue","Shakespeare Martineau LLP","Services - Professional Fees","1,395.00","0.00","8111"
"Wolverhampton City Council","http://opendatacommunities.org/id/metropolitan-district-council/wolverhampton","04/08/2017","Investment - Revenue","Shakespeare Martineau LLP","Services - Professional Fees","20,030.00","0.00","8111"
"Wolverhampton City Council","http://opendatacommunities.org/id/metropolitan-district-council/wolverhampton","29/08/2017","Investment - Revenue","SQUIRE PATTON BOGGS (UK) LLP","Services - Professional Fees","3,500.00","0.00","8111"
"Wolverhampton City Council","http://opendatacommunities.org/id/metropolitan-district-council/wolverhampton","15/08/2017","Investment - Revenue","SQUIRE PATTON BOGGS (UK) LLP","Services - Professional Fees","18,977.88","0.00","8111"
"Wolverhampton City Council","http://opendatacommunities.org/id/metropolitan-district-council/wolverhampton","16/08/2017","Investment - Revenue","Stephenson Harwood LLP","Services - Professional Fees","4,000.00","0.00","8111"
"Wolverhampton City Council","http://opendatacommunities.org/id/metropolitan-district-council/wolverhampton","02/08/2017","Investment - Revenue","Stephenson Harwood LLP","Services - Professional Fees","4,000.00","0.00","8111"
"Wolverhampton City Council","http://opendatacommunities.org/id/metropolitan-district-council/wolverhampton","24/08/2017","Investment - Revenue","Tedmoor Consultancy Ltd","Services - Professional Fees","3,750.00","0.00","8999"
"Wolverhampton City Council","http://opendatacommunities.org/id/metropolitan-district-council/wolverhampton","18/07/2017","LAPFF","The Bray Partnership Management Consultants","Services - Consultants","2,196.14","0.00","7392"
"Wolverhampton City Council","http://opendatacommunities.org/id/metropolitan-district-council/wolverhampton","17/07/2017","LAPFF","The Bray Partnership Management Consultants","Services - Consultants","2,315.26","0.00","7392"
"Wolverhampton City Council","http://opendatacommunities.org/id/metropolitan-district-council/wolverhampton","04/09/2017","LAPFF","The Bray Partnership Management Consultants","Services - Consultants","3,978.14","0.00","7392"
"Wolverhampton City Council","http://opendatacommunities.org/id/metropolitan-district-council/wolverhampton","31/08/2017","LAPFF","The Bray Partnership Management Consultants","Services - Consultants","4,096.89","0.00","7392"
"Wolverhampton City Council","http://opendatacommunities.org/id/metropolitan-district-council/wolverhampton","04/09/2017","LAPFF","The Bray Partnership Management Consultants","Subsistence","842.27","0.00","7392"
"Wolverhampton City Council","http://opendatacommunities.org/id/metropolitan-district-council/wolverhampton","31/08/2017","LAPFF","The Bray Partnership Management Consultants","Subsistence","916.90","0.00","7392"
"Wolverhampton City Council","http://opendatacommunities.org/id/metropolitan-district-council/wolverhampton","17/07/2017","LAPFF","The Bray Partnership Management Consultants","Subsistence","1,055.76","0.00","7392"
"Wolverhampton City Council","http://opendatacommunities.org/id/metropolitan-district-council/wolverhampton","18/08/2017","Governance","The Events Company","Training Expenses","1,895.00","0.00","8999"
"Wolverhampton City Council","http://opendatacommunities.org/id/metropolitan-district-council/wolverhampton","18/08/2017","Governance","The Events Company","Training Expenses","1,995.00","0.00","8999"
"Wolverhampton City Council","http://opendatacommunities.org/id/metropolitan-district-council/wolverhampton","29/08/2017","Governance","The Events Company","Training Expenses","1,995.00","0.00","8999"
"Wolverhampton City Council","http://opendatacommunities.org/id/metropolitan-district-council/wolverhampton","13/09/2017","Governance","The Events Company","Training Expenses","2,295.00","-","8999"
"Wolverhampton City Council","http://opendatacommunities.org/id/metropolitan-district-council/wolverhampton","01/09/2017","Governance","The Financial Times Limited","Staff Advertising Costs","500.00","-","5192"
"Wolverhampton City Council","http://opendatacommunities.org/id/metropolitan-district-council/wolverhampton","12/07/2017","Investments Fund Account","The Financial Times Limited","Subscriptions","500.00","-","5192"
"Wolverhampton City Council","http://opendatacommunities.org/id/metropolitan-district-council/wolverhampton","23/08/2017","Investments Fund Account","The Financial Times Limited","Subscriptions","572.00","-","5192"
"Wolverhampton City Council","http://opendatacommunities.org/id/metropolitan-district-council/wolverhampton","21/08/2017","Investments Fund Account","Thomson Reuters","Computing - Maint Agreements","636.00","-","5045"
"Wolverhampton City Council","http://opendatacommunities.org/id/metropolitan-district-council/wolverhampton","25/09/2017","Pension Operations","VENUE CATERING PARTNER LIMITED","Training Expenses","671.47","-","5811"
"Wolverhampton City Council","http://opendatacommunities.org/id/metropolitan-district-council/wolverhampton","29/08/2017","Pension Operations","VENUE CATERING PARTNER LIMITED","Conference Expenses","541.67","-","5811"
"Wolverhampton City Council","http://opendatacommunities.org/id/metropolitan-district-council/wolverhampton","17/07/2017","Pension Operations","Warwick University Enterprises Ltd","Agency Staff","533.24","-","8220"
"Wolverhampton City Council","http://opendatacommunities.org/id/metropolitan-district-council/wolverhampton","24/08/2017","Pension Operations","Warwick University Enterprises Ltd","Agency Staff","536.87","-","8220"
"Wolverhampton City Council","http://opendatacommunities.org/id/metropolitan-district-council/wolverhampton","24/08/2017","Pension Operations","Warwick University Enterprises Ltd","Agency Staff","536.87","-","8220"
"Wolverhampton City Council","http://opendatacommunities.org/id/metropolitan-district-council/wolverhampton","29/09/2017","Pension Operations","Warwick University Enterprises Ltd","Agency Staff","536.87","-","8220"
"Wolverhampton City Council","http://opendatacommunities.org/id/metropolitan-district-council/wolverhampton","22/08/2017","Pension Operations","Warwick University Enterprises Ltd","Agency Staff","536.87","-","8220"
"Wolverhampton City Council","http://opendatacommunities.org/id/metropolitan-district-council/wolverhampton","31/08/2017","Pension Operations","Warwick University Enterprises Ltd","Agency Staff","536.87","-","8220"
"Wolverhampton City Council","http://opendatacommunities.org/id/metropolitan-district-council/wolverhampton","21/09/2017","Pension Operations","Warwick University Enterprises Ltd","Agency Staff","536.87","-","8220"
"Wolverhampton City Council","http://opendatacommunities.org/id/metropolitan-district-council/wolverhampton","17/07/2017","Pension Operations","Warwick University Enterprises Ltd","Agency Staff","536.87","-","8220"
"Wolverhampton City Council","http://opendatacommunities.org/id/metropolitan-district-council/wolverhampton","08/08/2017","Governance","Wolverhampton City Council","Business Rates","750.00","-","9405"
"Wolverhampton City Council","http://opendatacommunities.org/id/metropolitan-district-council/wolverhampton","02/08/2017","Governance","Wolverhampton City Council","Printing","2,038.62","-","9405"
"Wolverhampton City Council","http://opendatacommunities.org/id/metropolitan-district-council/wolverhampton","01/08/2017","Pension Operations","Yoo","Agency Staff","2,742.19","-","7361"
"Wolverhampton City Council","http://opendatacommunities.org/id/metropolitan-district-council/wolverhampton","31/08/2017","Pension Operations","Yoo","Agency Staff","2,823.02","-","7361"
"Wolverhampton City Council","http://opendatacommunities.org/id/metropolitan-district-council/wolverhampton","09/08/2017","Pension Operations","Yoo","Agency Staff","2,896.23","-","7361"
"Wolverhampton City Council","http://opendatacommunities.org/id/metropolitan-district-council/wolverhampton","22/08/2017","Pension Operations","Yoo","Agency Staff","2,934.85","-","7361"
"Wolverhampton City Council","http://opendatacommunities.org/id/metropolitan-district-council/wolverhampton","25/07/2017","Pension Operations","Yoo","Agency Staff","2,981.82","-","7361"
"Wolverhampton City Council","http://opendatacommunities.org/id/metropolitan-district-council/wolverhampton","15/08/2017","Pension Operations","Yoo","Agency Staff","3,374.74","-","7361"
"Wolverhampton City Council","http://opendatacommunities.org/id/metropolitan-district-council/wolverhampton","26/09/2017","Pension Operations","Yoo","Agency Staff","3,533.13","-","7361"
"Wolverhampton City Council","http://opendatacommunities.org/id/metropolitan-district-council/wolverhampton","25/09/2017","Pension Operations","Yoo","Agency Staff","3,600.79","-","7361"
"Wolverhampton City Council","http://opendatacommunities.org/id/metropolitan-district-council/wolverhampton","07/09/2017","Pension Operations","Yoo","Agency Staff","3,738.73","-","7361"
"Wolverhampton City Council","http://opendatacommunities.org/id/metropolitan-district-council/wolverhampton","20/09/2017","Pension Operations","Yoo","Agency Staff","3,880.85","-","7361"
"Wolverhampton City Council","http://opendatacommunities.org/id/metropolitan-district-council/wolverhampton","12/07/2017","Pension Operations","Yoo","Agency Staff","4,515.99","-","7361"
